Cogmind - Beta 15 @@@ ROGUE MODE // 2025.10.12 @ 19:52:10 Player: welikiq Result: Destroyed by 61-S5S(R) with Subdweller Laser Performance ------------- Evolutions (0) 0 Regions Visited (2) 400 Robots Destroyed (32) 160 Value Destroyed (469) 469 Prototype IDs (2) 40 Alien Tech Used (0) 0 Bonus (0) 0 TOTAL SCORE: 1069 Bonus ------- None Cogmind --------- Core Integrity 0/250 Matter 290/300 Energy 200/200 System Corruption 0% Temperature Cool (6) Movement Core (200) Ox3 Location -10/Subcaves Parts ------- > --- POWER (1) -------- Subdweller Power Source > --- PROPULSION (2) --- (None) > --- UTILITY (2) ------ (None) > --- WEAPON (2) ------- Particle Gun Beam Cannon > --- INVENTORY (5) ---- Ion Engine Ion Engine Aluminum Leg Aluminum Leg Peak State ------------ > --- POWER ------------ Subdweller Power Source > --- PROPULSION ------- Aluminum Leg Aluminum Leg > --- UTILITY ---------- Scrap Shield > --- WEAPON ----------- Heavy Riot Gun Beam Cannon > --- INVENTORY -------- Ion Engine Ion Engine Aluminum Leg Aluminum Leg Particle Gun [Rating: 13] Favorites ----------- Power Ion Engine Engine Ion Engine Propulsion Aluminum Leg Leg Aluminum Leg Utility Small Storage Unit Device Sensor Array Storage Small Storage Unit Protection Scrap Shield Weapon Particle Gun Energy Gun Particle Gun Energy Cannon Beam Cannon Ballistic Gun Assault Rifle Build | -11 -10 -10 ------- Run | Yrd Mat Sub Slots Evolved . | . . . Power . | . . . Propulsion . | . . . Utility . | . . . Weapon . | . . . Parts Attached 24 | 7 14 3 Power 4 | 1 2 1 Engine 4 | 1 2 1 Core . | . . . Reactor . | . . . Propulsion 7 | 2 5 . Treads . | . . . Leg 7 | 2 5 . Wheel . | . . . Hover . | . . . Flight . | . . . Utility 5 | 1 3 1 Device 1 | . 1 . Storage 3 | 1 2 . Processor . | . . . Hackware . | . . . Protection 1 | . . 1 Artifact . | . . . Weapon 8 | 3 4 1 Energy Gun 4 | 2 1 1 Energy Cannon 1 | . 1 . Ballistic Gun 3 | 1 2 . Ballistic Cannon . | . . . Launcher . | . . . Special Weapon . | . . . Impact Weapon . | . . . Slashing Weapon . | . . . Piercing Weapon . | . . . Special Melee Weapon . | . . . Unidentified Prototypes . | . . . Parts Lost 6 | . 2 4 Power . | . . . Propulsion 3 | . 1 2 Utility 1 | . . 1 Weapon 2 | . 1 1 Highest Loss Streak 4 | . 1 4 To Critical Strikes . | . . . Average Backups 5 | 1 5 4 Power . | . . 1 Propulsion 3 | . 3 2 Utility . | . . . Weapon 1 | 1 1 . Tool/Special . | . . . Unused Backups 11 | . 5 6 Power 3 | . 2 1 Propulsion 5 | . . 5 Utility 1 | . 1 . Weapon 2 | . 2 . Tool/Special . | . . . Average Slot Usage (%) 94 | . 96 85 Engine 14 | . 14 14 Leg 27 | . 27 27 Device 3 | . 3 1 Storage 19 | . 22 1 Protection 2 | . . 12 Energy Gun 13 | . 12 13 Energy Cannon 5 | . 3 14 Ballistic Gun 9 | . 10 . Peak Build Rating 13 | 6 8 13 Average Rating 8 | 4 7 11 On Entrance 4 | . 6 8 Naked Turns . | . . . Heaviest Build 30 | 13 18 30 Greatest Support 20 | 20 20 20 Greatest Overweight (x) 3 | . 1 3 Average Overweight (x) . | . . . Largest Inventory Capacity 25 | 8 25 8 Average Capacity 7 | 6 8 5 Most Carried 8 | 5 8 8 Average Carried 5 | 1 5 4 Final Capacity 8 | 8 8 5 Final Carried 8 | 1 8 4 Class Distribution -------------------- 70% | Mutant 29% | Scavenger-Mutant Dominant Class ---------------- Mutant | -10/Materials Mutant | -10/Subcaves Resources | -11 -10 -10 ----------- Run | Yrd Mat Sub Matter Collected 782 | 285 487 10 Remotely . | . . . Salvage Created 1210 | 57 1044 109 Parts 67 | 1 64 2 Haulers Intercepted 1 | . 1 . Recyclers Shooed 1 | . 1 . Parts Field Recycled . | . . . Retrieved Matter . | . . . Parts Self-Destructed 5 | . . 5 Prevented . | . . . Kills | -11 -10 -10 ------- Run | Yrd Mat Sub Combat Hostiles Destroyed 14 | . 12 2 Guns 13 | . 12 1 Classes Destroyed 9 | 1 7 1 Worker 6 | . 6 . Builder 2 | . 2 . Hauler 1 | . 1 . Recycler 6 | 1 5 . Mechanic 1 | . 1 . Watcher 2 | . 2 . Swarmer 6 | . 6 . Grunt 6 | . 6 . Subdweller 2 | . . 2 Best Kill Streak 4 | 1 4 2 Combat Bots Only 3 | . 3 2 Max Kills in Single Turn 2 | 1 2 1 Gunslinging 1 | . 1 . Exploded . | . . . Melee . | . . . Uniques/NPCs Destroyed . | . . . Combat | -11 -10 -10 -------- Run | Yrd Mat Sub Hostile Shots Fired 90 | . 56 34 Missed 17 | . 13 4 Hits 73 | . 43 30 Projectile 73 | . 43 30 Critical Strikes 2 | . 2 . Damage Taken 1125 | . 472 653 Core 264 | . 120 144 Absorbed by Shields . | . . . Core Remaining (%) 100 | 100 . . Volleys Fired 89 | 5 74 10 Largest 2 | 2 2 2 Hottest 125 | 60 125 120 Shots Fired 168 | 10 145 13 Gun 152 | 10 134 8 Cannon 16 | . 11 5 Launcher . | . . . Special . | . . . Kinetic 82 | 5 77 . Thermal 83 | 5 68 10 Explosive . | . . . Electromagnetic 3 | . . 3 Robot Hit Streak 8 | 5 8 8 Robot Miss Streak 5 | 1 5 1 Penetration Max . | . . . Secondary Targets 5 | . 5 . Max Gunslinging Chain 1 | . 1 . Shots Hit Robots 103 | 8 83 12 Core Hits 45 | 2 39 4 Critical Kills 2 | . 1 1 Critical Parts Destroyed . | . . . Critical Strikes 2 | . 1 1 Meltdown 1 | . . 1 Destroy 1 | . 1 . Melee Attacks . | . . . Impact . | . . . Slashing . | . . . Piercing . | . . . Sneak Attacks . | . . . Combat Hostiles . | . . . Follow-up Attacks . | . . . Damage Inflicted 1438 | 97 1134 207 Guns 1229 | 97 996 136 Cannons 209 | . 138 71 Explosions . | . . . Melee . | . . . Ramming . | . . . Kinetic 621 | 66 555 . Thermal 758 | 31 579 148 Explosive . | . . . Electromagnetic 59 | . . 59 Impact . | . . . Slashing . | . . . Piercing . | . . . Highest Corruption . | . . . Average Corruption . | . . . Corruption Purged . | . . . Corruption Blocked . | . . . Overload Shots . | . . . Overflow Damage . | . . . Projectiles . | . . . Explosions . | . . . Melee . | . . . Knockbacks . | . . . Impact . | . . . Kinetic . | . . . Secondary . | . . . Self-Inflicted Damage . | . . . Shots . | . . . Rammed . | . . . Targets Rammed 1 | . 1 . Kicked 1 | . 1 . Crushed . | . . . Highest Temperature 208 | . 208 45 Average Temperature 54 | . 55 25 Received Heat Transfer 348 | . 210 138 Siege Activations . | . . . Martial Activations . | . . . Shielding Activations . | . . . Robots Disrupted . | . . . Combat Hostiles . | . . . Robots Corrupted . | . . . Combat Hostiles . | . . . Parts Fried . | . . . Impact Corruptions . | . . . Robots Melted 1 | . . 1 Combat Hostiles 1 | . . 1 Parts Melted 5 | . 3 2 Heat Transferred 1777 | 75 1369 333 Parts Sabotaged . | . . . Parts Stolen . | . . . Parts Stripped . | . . . Power Chain Reactions . | . . . Alert | -11 -10 -10 ------- Run | Yrd Mat Sub Maximum Alert Level . | . . . Low Security (%) 100 | 100 100 . Level 1 . | . . . Level 2 . | . . . Level 3 . | . . . Level 4 . | . . . Level 5 . | . . . High Security . | . . . Max Security . | . . . Peak Influence 102 | 5 102 . Initial . | . . . Average 28 | . 30 . Influence Increases 431 | 5 426 . Destroy 0b10 Robot/C 240 | . 240 . Destroy 0b10 Robot/NC 90 | 5 85 . Destroy Leader 56 | . 56 . Successful Hack 28 | . 28 . Destroy Structure 2 | . 2 . Lose Combat Pursuer 15 | . 15 . Influence Decreases 431 | 5 383 43 Entered New Map 22 | . . 22 Time Decay 389 | 5 363 21 Lost Part 20 | . 20 . Squads Dispatched 1 | . 1 . Investigation . | . . . Extermination . | . . . Reinforcement 1 | . 1 . Assault . | . . . Garrison . | . . . Intercept . | . . . Searches Triggered . | . . . Construction Impeded . | . . . Haulers Reinforced . | . . . Active Scanning Responses . | . . . Cargo Convoy Interrupts . | . . . Stealth | -11 -10 -10 --------- Run | Yrd Mat Sub Distress Signals 1 | . 1 . Communications Jammed . | . . . Distress Signals . | . . . Times Spotted 27 | . 20 7 Peak Tracking Total 7 | . 4 7 Tactical Retreats 1 | . 1 . Traps | -11 -10 -10 ------- Run | Yrd Mat Sub Traps Triggered 2 | . 2 . Indirectly . | . . . Trap Hack Attempts . | . . . Triggered . | . . . Disarmed . | . . . Reprogrammed . | . . . Reused . | . . . Traps Extracted . | . . . Installed . | . . . Triggered . | . . . Machines | -11 -10 -10 ---------- Run | Yrd Mat Sub Machines Disabled . | . . . Max in Single Turn . | . . . Machines Repaired . | . . . Machines Dismantled . | . . . Machines Sabotaged . | . . . Overloaded Fab Kills . | . . . Hacking | -11 -10 -10 --------- Run | Yrd Mat Sub Machines Accessed 7 | . 7 . Terminals 5 | . 5 . Fabricators . | . . . Repair Stations 1 | . 1 . Recycling Units 1 | . 1 . Scanalyzers . | . . . Garrison Access . | . . . Total Hacks 19 | . 19 . Successful 11 | . 11 . Failed 8 | . 8 . Catastrophic 1 | . 1 . Database Lockouts . | . . . Manual 2 | . 2 . Terminals 16 | . 16 . Fabricators . | . . . Repair Stations 1 | . 1 . Recycling Units 2 | . 2 . Scanalyzers . | . . . Garrison Access . | . . . Terminal Hacks 10 | . 10 . Record 4 | . 4 . Robot Analysis 1 | . 1 . Prototype ID Bank 1 | . 1 . Surveillance Status 2 | . 2 . Reinforcement Status 1 | . 1 . Zone Layout 1 | . 1 . Fabricator Hacks . | . . . Repair Station Hacks . | . . . Recycling Unit Hacks 1 | . 1 . Report Inventory 1 | . 1 . Scanalyzer . | . . . Garrison Access Hacks . | . . . Unauthorized Hacks . | . . . Terminals . | . . . Fabricators . | . . . Repair Stations . | . . . Recycling Units . | . . . Scanalyzers . | . . . Garrison Access . | . . . Data Cores Recovered . | . . . Used . | . . . Hacking Detections 6 | . 6 . Full Trace Events . | . . . Feedback Events . | . . . Feedback Blocked . | . . . Robot Schematics Acquired . | . . . Robots Built . | . . . Authchips . | . . . Time . | . . . Total Robot Build Rating . | . . . Part Schematics Acquired . | . . . Parts Built . | . . . Authchips . | . . . Time . | . . . Total Part Build Rating . | . . . Parts Repaired . | . . . Time . | . . . Parts Recycled . | . . . Recycled Matter . | . . . Retrieved Matter . | . . . Retrieved Components . | . . . Parts Scanalyzed . | . . . Part Schematics Acquired . | . . . Parts Damaged . | . . . Bothacking | -11 -10 -10 ------------ Run | Yrd Mat Sub Used RIF Installer . | . . . Robots Hacked . | . . . Non-combat . | . . . Combat . | . . . Robot Hacks Applied . | . . . Relay Couplers Released . | . . . Fabnet Peak Effective % . | . . . Robots Rewired . | . . . Allies Hacked . | . . . Hacks Repelled . | . . . Allies | -11 -10 -10 -------- Run | Yrd Mat Sub Total Allies . | . . . Largest Group . | . . . Highest-Rated Group . | . . . Highest-Rated Ally . | . . . Total Orders . | . . . Ally Attacks . | . . . Total Damage . | . . . Kills . | . . . Allies Corrupted . | . . . Allies Melted . | . . . Intel | -11 -10 -10 ------- Run | Yrd Mat Sub Active Infowar (turns) 459 | . 429 30 Sensors 459 | . 429 30 Robot Analysis Total 1 | . 1 . Derelict Logs Recovered 1 | . . 1 Drone Launches . | . . . Drone Recoveries . | . . . Exploration | -11 -10 -10 ------------- Run | Yrd Mat Sub Turns Passed 2268 | 88 1807 373 Spaces Moved 1479 | 59 1234 186 Core 19 | 16 . 3 Treads . | . . . Legs 1460 | 43 1234 183 Wheels . | . . . Hover . | . . . Flight . | . . . Fastest Speed 50 | 50 120 120 Average Speed 128 | 101 121 182 Slowest Speed 200 | 120 190 200 Overloaded Moves . | . . . Propulsion Burnouts . | . . . Robots Hopped . | . . . Potential Cave-ins . | . . . Cave-ins Triggered . | . . . Exploration Rate (%) 32 | 4 88 6 Regions Visited 2 Branch Regions 1 Pre-discovered Areas . | . . . Known Exits Taken . | . . . Unknown Exits Taken 2 | 1 1 . Scrap Searched . | . . . Spaces Dug . | . . . Terrain Destroyed . | . . . Melee . | . . . Projectile . | . . . AOE . | . . . Terrain Rammed . | . . . Walls Destroyed . | . . . Machines Disabled . | . . . Actions | -11 -10 -10 --------- Run | Yrd Mat Sub Total 1684 | 77 1397 210 Wait 30 | . 30 . Move 1477 | 58 1233 186 Hop . | . . . Pick Up 36 | 7 26 3 Fast Attach 1 | . 1 . Attach 15 | 6 7 2 Detach . | . . . Swap 17 | 1 14 2 Drop 18 | . 11 7 Fire 89 | 5 74 10 Melee . | . . . Ram . | . . . Kick 1 | . 1 . Crush . | . . . Escape Stasis . | . . . Rewire . | . . . Trap . | . . . Miscellaneous . | . . . Route ------- -11/Scrapyard -10/Materials (discovered 5 exits: [*Mat x3] / [*Min] / [*Sub]) -10/Subcaves History --------- Turn | Location | Event 12 | -11/Scrapyard | Discovered new exit (range 15) 89 | -11/Scrapyard | Entered Materials 320 | -10/Materials | Build established: Mutant 506 | -10/Materials | Discovered new exit (range 5) 717 | -10/Materials | Discovered new exit (range 10) 824 | -10/Materials | Discovered new exit (range 15) 1267 | -10/Materials | Discovered new exit (range 13) 1683 | -10/Materials | Build established: Scavenger-Mutant 1776 | -10/Materials | Discovered new exit (range 6) 1896 | -10/Materials | Entered Subcaves 1897 | -10/Subcaves | Approached by a straggling Scientist 1944 | -10/Subcaves | Learned 4 Materials zone layouts 2032 | -10/Subcaves | Shifting Twisted Machinery released Hvy. Riot Gun 2036 | -10/Subcaves | Shifting Twisted Machinery released Sub. Power Source 2226 | -10/Subcaves | Ambushed by swarm of Subdwellers 2236 | -10/Subcaves | Shifting Twisted Machinery released Battle Rifle 2247 | -10/Subcaves | Core integrity fell below 50% 2264 | -10/Subcaves | Core integrity fell below 20% 2269 | -10/Subcaves | Destroyed by 61-S5S(R) with Subdweller Laser Last Messages --------------- 01986_ Subatomizers dissect the Aluminum Leg. OC-Z4V(c): "I think it's somewhere east of here" 02008_ Subatomizers dissect the Sml. Storage Unit. 02028_ M8-HA6(u) builds Twisted Machinery. Hvy. Riot Gun falls loose from the Twisted Machinery. Sub. Power Source falls loose from the Twisted Machinery. 02045_ Acquired Hvy. Riot Gun. OC-Z4V(c): "I think it's somewhere east of here" 02059_ Acquired Sub. Power Source. OC-Z4V(c): "I think it's somewhere east of here" Battle Rifle falls loose from the Twisted Machinery. 02246_ ES-SJZ(R) suffers critical hit (Meltdown). [Achievement: It's Just You] 02246_ Sub. Optics melted. 02246_ Sub. Power Source melted. 02248_ Hvy. Riot Gun destroyed. 02258_ 2Y-PLZ(R) destroyed. 02259_ Aluminum Leg destroyed. 02261_ Scrap Shield destroyed. 02263_ Aluminum Leg destroyed. Map ----- +----------------------------------------------------+ | | | | | | | | | | | | | | | | | | | ?????????????????????????????????????????????????? | | ?????????????????????????????????????????????????? | | ?????????????????????????????????????????????????? | | ?????????????????????????????????????????????????? | | ?????????????????????????????????????????????????? | | ?????????????????????????????????????????????????? | | ?????????????????????????????????????????????????? | | ?????????????????????????????????????????????????? | | ?????????????????????????????????????????????????? | | ?????????????????????????????????????????????????? | | ?????????????????????????????????????????????????? | | ?????????????????????????????????????????????????? | | ?????????????????????????????????????????????????? | | ?????????????????????????????????????????????????? | | ########????###########?#####????????????????????? | | ## ###### # # ### # ##???????????????????? | | @ ##??????????????????? | | #??????????????????? | | ### ### # # # ##RR##??????????????????? | | """ #### ####?############ ] #???????????????????? | | "" "#####????????????????#%= #??????????????????? | | "" "" #??????????????????? #??????????????????? | | " """ #??????????????????? ##??????????????????? | | """"##??????????????????? ##???????????????????? | | ######???????????????????? #????????????????????? | | #????????????????????????? #????????????????????? | | #?????????????????????????""?????????????????????? | | ????????????????????????? [?????????????????????? | | ????????????????????????? ?????????????????????? | | ????????????????????????? "?????????????????????? | | ????????????????????????? "??????????????????????? | | ##???????????????????????????????????????????????? | | %####????????????????????????????????????????????? | | %% #????????????????????????????????????????????? | | ##???????????????????????????????????????????? | | #???????????????????????????????????????????? | | ####???????????????????????????????????????????? | | #??????????????????????????????????????????????? | | #??????????????????????????????????????????????? | | ##??????????????????????????????????????????????? | | ##??????????????????????????????????????????????? | +----------------------------------------------------+ Best States ------------- Heat Dissipation 25 Energy Generation 15 Energy Capacity 250 Matter Stores 400 Matter Capacity 400 Sight Range 16 Robot Scan Range 14 Terrain Scan Density 10 Armor Coverage 800 Evasion (%) 55 Item Schematics ----------------- None Robot Schematics ------------------ None Fabricated ------------ Nothing Repaired ---------- Nothing Alien Tech Used ----------------- None Achievements -------------- It's Just You Challenges ------------ None Game ------ Seed DisruptionWaveDirector Manual? 0 Play Time 00:34:52 Cumulative 3.0 hours Start 2025.10.12 @ 16:13:47 End 2025.10.12 @ 19:52:10 Sessions 2 Manual Loads 0 Difficulty Rogue Special Mode None Game No. 7 Rogue 7 Adventurer 0 Explorer 0 Win Type - Total 0 Types 0/0/0/0/0/0/0/0/0/0 Lore% 0 Gallery% 3 Achievement% 4 Wizard Run 0 Options --------- Layout 0 ASCII 0 Keyboard 1 Movement Arrows Keybinds 0 Fullscreen 1 Font 24/Smallcaps Map View 38x25 Zoom Use 90% Tactical HUD 1 Map Filters NONE Filters NONE Steam 1 RUN: 595e04d3-84e4-4e40-b3ff-7b1f3c88eacd